Workbook

Sheet Bag & Bulk
A7: MICRO INGREDIENTS | G7: NON-GMO PRODUCTS
A8: PRODUCT | B8: Qty | D8: PER # | E8: PRICE | G8: PRODUCT | H8: Qty | J8: PER # | K8: PRICE
A9: All-Tech Allzyme Veg Pro | B9: 55 | C9: lb | D9: =E9/B9 -> 2.4 | E9: 132 | G9: Apple Cider Vinegar(32#) | H9: 4 | I9: gal | J9: =K9/32 -> 0.6875 | K9: 22
A10: Biofix Plus | B10: 50 | C10: lb | D10: 2.9 | E10: 145 | G10: Apple Cider Vinegar (440#) | H10: 55 | I10: gal | J10: =K10/440 -> 0.5681818182 | K10: 250
A11: Biotin 100 | B11: 50 | C11: lb | D11: 0.32 | E11: 16 | G11: Broiler Grower Pellets | H11: 50 | I11: lb | J11: =K11/H11 -> 0.32 | K11: 16
A12: By-O-Reg Plus | B12: 50 | C12: lb | D12: 9.8 | E12: 490 | G12: Chick Starter Crumbles - NOW IN | H12: 50 | I12: lb | J12: =K12/H12 -> 0.36 | K12: 18
A13: Calcium Carbonate | B13: 50 | C13: lb | D13: 0.11 | E13: 5.5 | G13: Calf Starter 14% Pellets - OUT | H13: 50 | I13: lb | J13: =K13/H13 -> 0.32 | K13: 16
A14: Dicalcium Phosphate | B14: 50 | C14: lb | D14: 0.36 | E14: 18 | G14: Oat Mill Run Pellets | H14: 50 | I14: lb | J14: =K14/H14 -> 0.1 | K14: 5
A15: Iron Sulfate | B15: 50 | C15: lb | D15: 0.38 | E15: 19 | G15: Oat Mill Run Pellets | H15: 2000 | I15: lb | J15: =K15/H15 -> 0.0725 | K15: 145
A16: Natural Salt (OMRI) | B16: 50 | C16: lb | D16: 0.16 | E16: 8 | G16: Hog Starter-Grower 16% | H16: 50 | I16: lb | J16: 0.22 | K16: 11
A17: Magnesium Oxide | B17: 50 | C17: lb | D17: 0.3 | E17: 15 | G17: Hog Grower-Finisher 14% | H17: 50 | I17: lb | J17: 0.18 | K17: 9
A18: Organic ADE Mineral | B18: 50 | C18: lb | D18: 0.96 | E18: 48 | G18: Horse Mix 12% Pellets | H18: 50 | I18: lb | J18: =K18/H18 -> 0.29 | K18: 14.5
A19: Organic Dairy 2:1 Mineral | B19: 50 | C19: lb | D19: 0.46 | E19: 23 | G19: Layer Pellets | H19: 50 | I19: lb | J19: =K19/H19 -> 0.32 | K19: 16
A20: Organic Calsporin | B20: 25 | C20: lb | D20: 4.3 | E20: 107.5 | G20: Rumapro Soy Hulls | H20: 2000 | I20: lb | J20: =160/2000 -> 0.08 | K20: L: 145
A21: Reed Sedge Peat Humates | B21: 55 | C21: lb | D21: =E21/32 -> 0.9375 | E21: 30 | J21: =190/2000 -> 0.095 | K21: P: 175.00
A22: Selenium 0.02% | B22: 50 | C22: lb | D22: =E22/B22 -> 0.18 | E22: 9 | G22: Soy Pro 40 Meal | H22: 2000 | I22: lb | J22: =K22/H22 -> 0.1875 | K22: 375
A23: Selenium 0.06% | B23: 50 | C23: lb | D23: 0.2 | E23: 10 | G23: Soy Pro 50 Meal | H23: 2000 | I23: lb | J23: =K23/H23 -> 0.1875 | K23: 375
A24: Shell & Bone Meal | B24: 50 | C24: lb | D24: 0.14 | E24: 7 | G24: Soy Pro 55 Meal | H24: 2000 | I24: lb | J24: =K24/H24 -> 0.1875 | K24: 375
A25: Sodium Bentonite | B25: 50 | C25: lb | D25: 0.16 | E25: 8 | G25: Soybean Meal | H25: 2000 | I25: lb | K25: $Call
A26: Sodium Bicarbonate | B26: 50 | C26: lb | D26: 0.32 | E26: 16 | G26: Non-GMO Soybean Oil (32#) | H26: 4 | I26: gal | J26: =K26/H26 -> 2.5 | K26: 10
A27: Vitamin E 20,000 | B27: 50 | C27: lb | D27: =E27/B27 -> 0.5 | E27: 25 | G27: Wildlife Feed - NOW IN STOCK | H27: 50 | I27: lb | J27: =K27/H27 -> 0.2 | K27: 10
A28: RIVERSIDE'S PREMIX PACKS | G28: ORGANIC PRODUCTS
A29: RF Cattle 2-1 Mineral | B29: 47.3 | C29: lb | D29: =E29/B29 -> 0.44397463 | E29: 21 | G29: PRODUCT | H29: Qty | K29: PRICE
A30: RF Farmix Plain | B30: 50 | C30: lb | D30: =E30/B30 -> 0.56 | E30: 28 | G30: Dr. Paul's Aloe Pellets | H30: 50 | I30: lb | J30: =K30/H30 -> 1.44 | K30: 72
A31: RF Farmix Starter Premix | B31: 50 | C31: lb | D31: =E31/B31 -> 0.7 | E31: 35 | G31: Alfalfa Meal - or - Pellets | H31: 50 | I31: lb | J31: =K31/50 -> 0.36 | K31: 18
A32: RF Gut Guard | B32: 50 | C32: lb | D32: 7.5 | E32: 375 | G32: Apple Cider Vinegar (8#) | H32: 1 | I32: gal | J32: =K32/50 -> 0.39 | K32: 19.5
A33: RF Sow Boost | B33: 50 | C33: lb | D33: =E33/B33 -> 0.38 | E33: 19 | G33: Apple Cider Vinegar (32#) | H33: 4 | I33: gal | J33: =K33/32 -> 0.9375 | K33: 30
A34: FERTRELL PRODUCTS | G34: Apple Cider Vinegar (440#) | H34: 55 | I34: gal | J34: =K34/440 -> 0.8181818182 | K34: 360
A35: Fertrell Fishmeal | B35: 50 | C35: lb | D35: =E35/B35 -> 1.4 | E35: 70 | G35: Calf Starter 14% Pellets - OUT | H35: 50 | I35: lb | J35: =K35/H35 -> 0.4 | K35: 20
A36: Fertrell RC Gold 4x | B36: 12 | C36: lb | D36: =E36/B36 -> 4.5 | E36: 54 | G36: Dried Buttermilk Powder | H36: 50 | I36: lb | J36: =K36/H36 -> 1 | K36: 50
A37: Fertrell Goat Nutri-Balancer | B37: 50 | C37: lb | D37: =E37/B37 -> 1.04 | E37: 52 | G37: Acadian Kelp | H37: 50 | I37: lb | J37: =K37/H37 -> 0.98 | K37: 49
A38: Fertrell Grazier's Choice | B38: 50 | C38: lb | D38: =E38/B38 -> 0.82 | E38: 41 | G38: Liquid Molasses | H38: 50 | I38: lb | J38: =K38/H38 -> 0.76 | K38: 38
A39: Fertrell Sheep Mineral | B39: 50 | C39: lb | D39: 0.88 | E39: 44 | G39: Oat Mill Run Pellets | H39: 2000 | I39: lb | J39: =K39/H39 -> 0.0925 | K39: 185
A40: Fertrell Sow Premix | B40: 50 | C40: lb | D40: =E40/B40 -> 0.86 | E40: 43 | G40: Hog Feeds (all stages) | H40: 2000 | I40: lb | K40: $Call
A41: Fertrell Swine Grower | B41: 50 | C41: lb | D41: 0.88 | E41: 44 | G41: Milk Specialties Milk Replacer | H41: 50 | I41: lb | J41: =K41/H41 -> 3.5 | K41: 175
A42: Fertrell Horse Power Mineral | B42: 50 | C42: lb | D42: 1.18 | E42: 59 | G42: Opro 20 Soy Hull Pellets | H42: 2000 | I42: lb | J42: =K42/H42 -> 0.1825 | K42: 365
A43: Fertrell Poultry NB w/o Meth | B43: 50 | C43: lb | D43: 1.28 | E43: 64 | G43: Opro 40 | H43: 2000 | I43: lb | J43: =K43/H43 -> 0.4125 | K43: 825
A44: REDMOND PRODUCTS | G44: Opro 50 | H44: 2000 | I44: lb | J44: =K44/H44 -> 0.425 | K44: 850
A45: Beef Mineral Mix | B45: 50 | C45: lb | D45: =E45/B45 -> 0.36 | E45: 18 | G45: PreWean 22 Pellets | H45: 50 | I45: lb | J45: =K45/H45 -> 0.62 | K45: 31
A46: Conditioner Coarse | B46: 50 | C46: lb | D46: 0.28 | E46: 14 | G46: Soybean Meal | H46: 2000 | I46: lb | K46: $Call
A47: Goat Mineral | B47: 5 | C47: lb | D47: 1.8 | E47: 9 | G47: Soybean Oil (32#) | H47: 4 | I47: gal | J47: =K47/32 -> 0.59375 | K47: 19
A48: Goat Mineral | B48: 25 | C48: lb | D48: 0.6 | E48: 15 | G48: Steamed Rolled Oats | H48: 50 | I48: lb | J48: =K48/H48 -> 0.45 | K48: 22.5
A49: Natural TM 10 Salt (Bag) | B49: 50 | C49: lb | D49: 0.24 | E49: 12
A50: Natural TM Salt Block | B50: 44 | C50: lb | D50: 0.2727272727 | E50: 12 | G50: CUSTOM SERVICES
A51: NTM #10 w/Selenium 90 | B51: 50 | C51: lb | D51: 0.28 | E51: 14 | G51: Pelleting (1 ton min.) | H51: 2000 | I51: lb | J51: =K51/H51 -> 0.015 | K51: 30
A52: TM 10 Salt w/Garlic (Pest Guard) | B52: 50 | C52: lb | D52: 0.36 | E52: 18 | G52: Crumbling (additional to pelleting) | H52: 2000 | I52: lb | J52: =K52/H52 -> 0.00375 | K52: 7.5
A53: TM 10 Salt w/Garlic Block | B53: 44 | C53: lb | D53: 0.4090909091 | E53: 18 | G53: Grinding/Mixing | H53: 2000 | I53: lb | J53: =K53/H53 -> 0.0225 | K53: 45
A54: SR 65 | B54: 50 | C54: lb | D54: =E54/B54 -> 0.28 | E54: 14 | G54: 50# Feed Sack Bagging | H54: 2000 | I54: lb | J54: 0.0275 | K54: 55
A55: Wildlife Trophy Rock (salt rock) | B55: 20 | C55: lb | D55: =E55/B55 -> 0.75 | E55: 15 | G55: 2000# Poly Tote Bagging | H55: 2000 | I55: lb | J55: 0.015 | K55: 30
C59: **Prices are subject to change without notice**

Sheet Retail
A1: Dr. Paul's Lab: | B1: ID Number: | C1: Price: | E1: Shoo-Fly Concentrate - 32 Ounce | F1: 10660-32oz | G1: 81
A2: Dr. Paul's Book | E2: 64 Ounce | F2: 10660-64oz | G2: 132
A3: Complete Guide to Raising Animals Org. | B3: 14001 | C3: 35 | E3: Shoo-Fly Spray - 32 Ounce | F3: 10650-32oz | G3: 17
A4: ABC Relief - 12 PACK | B4: 10000-12pk | C4: 71 | E4: Gallon Refill | F4: 10650-1G | G4: 55
A5: 16 OUNCE | B5: 10000-16oz | C5: 85 | E5: Super Wound Spray - 22 oz | F5: 10680-22oz | G5: 22.5
A6: Aloe C - Gallon | B6: 10500-1G | C6: 26 | E6: 64 Ounce Refill | F6: 10680-64oz | G6: 52
A7: Aloe Pellets - 3.5 # | B7: 10510-3.5lbs | C7: 10.5 | E7: Swine-X - 60 Ounce | F7: 10690-60oz | G7: 26
A8: 25# Pail | B8: 10510-25lbs | C8: 47.5 | E8: 5 Quart | F8: 10690-5qt | G8: 66.5
A9: 50# Bag | B9: 10510-50lbs | C9: 72 | E9: 3 Gallon | F9: 10690-3G | G9: 152
A10: Antioxidant Blend - 2 ounce | C10: 20 | E10: Tom's Stomach Health - 8 ounce | G10: 60
A11: 8 Ounce | B11: 10020-8oz | C11: 45 | E11: Wellness Tonic - Gallon | F11: 10710-1G | G11: 36.5
A12: Apple Cider Vinegar (Organic) - 1 Gal | C12: 19.5 | E12: Will John - 2 Ounce | F12: 10350-2oz | G12: 20
A13: Arnica Ice Lotion - 8 ounce | C13: 27 | E13: 4 Ounce | F13: 10350-4oz | G13: 31.5
A14: 16 ounce | C14: 47 | E14: 8 Ounce | F14: 10350-8oz | G14: 45
A15: Arnica Tincture - 8 ounce | B15: 10030-8oz | C15: 45 | E15: Whey OL - 450ml | F15: 10730-450ml | G15: 61
A16: B-Well - 25 ct. Cows | B16: 10820-25COW | C16: 36 | E16: Wound Powder - 16 Ounce | G16: 25
A17: Beet-Oh - 2 Ounce | C17: 20 | E17: Homeopathy: Apis - 1 Ounce | F17: 10360-1oz | G17: 14
A18: Boost-Her - 25 Capsules | B18: 10840-25C | C18: 45 | E18: Sepia - 1 Ounce | F18: 10361-1oz | G18: 14
A19: Bug-A-Boo - 8 Ounce | C19: 15 | E19: Supplies:
A20: Calf Ease - 30 Capsules | B20: 10850-30C | C20: 33 | E20: All Weather Livestock Marker | F20: Red - 4500, Blue - 4505 | G20: $1.50/Stick
A21: Calf Start - 32 ounce | B21: . | C21: 30 | E21: (Blue, Red, Green, Orange) | F21: Green - 4510, Orange - 4515 | G21: $12/Case
A22: 64 Ounce | B22: 10520-64oz | C22: 52 | E22: Flexible Bandage (4"x5yds.) | F22: 4581 | G22: 2.75
A23: Gallon | B23: 10520-1G | C23: 92 | E23: 3 Qt Calf Bottle/Nipple Set | F23: 4595 | G23: 12.5
A24: Caulophyllum - 4 ounce | B24: 10090-4oz | C24: 31.5 | E24: Replacement Nipple | F24: 4591 | G24: 3
A25: 8 ounce | B25: 10090-8oz | C25: 45 | E25: Calf Feeding Bucket w/Nipple | F25: 4596 | G25: 18.75
A26: 32 Ounce | B26: 10090-32oz | C26: 145 | E26: Replacement Nipple for Bucket | F26: 4590 | G26: 5.25
A27: CEG - 2 ounce | B27: 10110-2oz | C27: 20 | E27: Bolus Gun/Cow | F27: 4550 | G27: 24
A28: 8 ounce | B28: 10110-8oz | C28: 45 | E28: Bolus Gun/Calf | F28: 4555 | G28: 3.5
A29: 32 ounce | B29: 10110-32oz | C29: 145 | E29: Tincture Syringes - 6cc | F29: 4560 | G29: 0.5
A30: CEG Switchel - 32 ounce | C30: 15 | E30: Syringe - 140cc | F30: 4565 | G30: 7
A31: CGS - 60 ounce | B31: 10530-60oz | C31: 41 | E31: Pipettes - 3 Singles | F31: 4575 | G31: 1
A32: 5 Quart | B32: 10530-5qt | C32: 82 | E32: Needles (for syringes) | F32: 4545 | G32: $0.20 / Each
A33: 15# | B33: 10530-15lbs | C33: 395 | E33: Digital Thermometer | F33: 4580 | G33: 5
A34: Cocci - Blast - 60 ct | B34: 10870-60C | C34: 62 | E34: Udder Infusion Canular - Single | F34: 4570 | G34: 3.5
A35: Comfort Bolus - 20 ct | B35: 10880-20C | C35: 38 | E35: Plastic Baler Twine 170 ks 7200' | G35: 26
A36: Comfrey - 8 ounce | B36: 10130-8oz | C36: 45 | E36: 2" Ratchet Straps (in case you forget!) | G36: 14
A37: DeLice & Mange Spray 32 Oz | B37: 10550-32oz | C37: 55 | E37: Smidley Parts:
A38: 64 Ounce Refill | B38: 10550-64oz | C38: 105 | E38: Thermostat | F38: 4140 | G38: 22
A39: Detox Bulk - 1 Gallon | B39: 10560 | C39: 65 | E39: Valve | F39: 4145 | G39: 12
A40: Detox Plus - 25 Bolus | B40: 10910-25C | C40: 47.5 | E40: Rubber Flush Plug | F40: 4100 | G40: 4
A41: Downer Plus - 25 ct | B41: 10920-25C | C41: 37.5 | E41: Short Float | F41: 4130 | G41: 8
A42: Dull It - 2 Ounce | B42: 10140-2oz | C42: 20 | E42: Long Float | F42: 4120 | G42: 8
A43: 8 Ounce | B43: 10140-8oz | C43: 45 | E43: Heating Element (1,2 and 4 Drink) | F43: 1 - 4105, 2 - 4110, 4 - 4115 | G43: 22
A44: 32 Ounce | B44: 10140-32oz | C44: 145 | E44: Smidley Drinkers (USED, With New Parts)
A45: Easy Life - 2 Ounce | B45: 10150-2oz | C45: 20 | E45: Single Drinker, Single Side | F45: 4200 | G45: 150
A46: 4 Ounce | B46: 10150-4oz | C46: 31.5 | E46: Replacement Part Package | G46: 68
A47: 8 Ounce | B47: 10150-8oz | C47: 45 | E47: Single Drinker, Double Side | G47: 250
A48: Electra Lytes - 4# | B48: 10930-4lbs | C48: 21 | E48: Replacement Part Package | G48: 68
A49: Eliminate Bolus - 25 Ct. | B49: 10940-25ct | C49: 61.5 | E49: Double Drinker, Double Side | F49: 4205 | G49: 325
A50: FAB-55 - 2 Ounce | C50: 20 | E50: Replacement Part Package | G50: 90
A51: 4 ounce | C51: 31.5 | E51: Triple Drinker, Double Side | F51: 4215 | G51: 425
A52: FEV-4 - 2 ounce | B52: 10180-2oz | C52: 20 | E52: Replacement Part Package | G52: 90
A53: FEV-4 - 8 ounce | B53: 10180-8oz | C53: 45 | E53: Other Products:
A54: FLC - 8 Ounce | B54: 10190-8oz | C54: 45 | E54: Equine Kelp - 6.6# | F54: 4775 | G54: 29
A55: Foot Fix Spray - 32 Ounce | B55: 10580-32oz | C55: 72 | E55: Diatomaceous Earth - 50# | F55: 7225 | G55: 19.5
A56: Fresh Cow Bolus - 20 ct | B56: 10960-20C | C56: 39 | E56: Mistral - 55# | F56: 4805 | G56: 50
A57: Garlic - 8 Ounce | B57: 10210-8oz | C57: 45 | E57: White Barn Lime - 50# | F57: 4800 | G57: 6
A58: Garlic Oil - 8 Ounce | C58: 23 | E58: Oyster Shells - 50# | F58: 7265 | G58: 11
A59: Hand Sanitizer - 8 Ounce | C59: 16 | E59: Poultry Grit #2 medium - 50# | F59: 7342 | G59: 7.5
A60: 16 Ounce | C60: 26 | E60: Blue bag water softener salt - 50# | F60: 4850 | G60: 9.5
A61: 32 Ounce | C61: 45 | E61: Yellow bag softener salt - 50# | F61: 4855 | G61: 7.5
A62: 1 Gallon | C62: 154 | E62: Redmond Udder Mud 16 ounce | F62: 4600 | G62: 19
A63: Herbaloe - 32 Ounce | B63: 10590-32oz | C63: 31 | E63: Crystal Creek Pivot-FL 5# | F63: 4710 | G63: 50
A64: KetoCare - 20 ct | B64: 10985-20C | C64: 43 | E64: Crystal Creek Super Boost Bulk 5# | F64: 4705 | G64: 142
A65: Knit Away - 60 Ounce | B65: 10600-60oz | C65: 35 | E65: Redmond Human Products:
A66: LT Solution - 8 Ounce | B66: 10220-8oz | C66: 45 | E66: Real Salt 10 Ounce Shaker | F66: 4610-9 | G66: 5
A67: Nature's Cycle H - 8 Ounce | B67: 10240-8oz | C67: 45 | E67: Real Salt 26 Ounce Pouch | F67: 4610-26 | G67: 9
A68: OLS-M - 8 Ounce | B68: 10250-8oz | C68: 45 | E68: Real Salt Holiday Pack | G68: 18
A69: 32 Ounce | B69: 10250-32oz | C69: 145 | E69: Real Salt Flavored Season Salts 8.25 Ounce | G69: 8
A70: Pig Aid - 16 Ounce | B70: 10620-16oz | C70: 31 | E70: Real Salt Season Salt 32 Ounce | G70: 25
A71: Pinkeye Drops - 8 Ounce | B71: 10270-8oz | C71: 45 | E71: Earth Paste (all flavors) | G71: 6
A72: Poke Oil - 8 Ounce | B72: 10280-8oz | C72: 23 | E72: Earth Powder (all flavors) | G72: 9
A73: Poultry Plus - 64 Ounce | B73: 10630-64oz | C73: 20 | E73: Bentonite Clay (Food Grade) | G73: 8.5
A74: Poultry-X - 60 Ounce | B74: 10635-60oz | C74: 26 | E74: Shavings & Pet Food:
A75: 5 Quart | B75: 10635-5qt | C75: 66.5 | E75: SunCoast Pine - 25# (12 cu ft) | F75: 4810 | G75: 8
A76: 3 Gallon | B76: 10635-3G | C76: 152 | E76: Tuffy's Adult Gold Dog Food - 40# | F76: 4910 | G76: 22
A77: Protect Her - 16 Ounce | B77: 10640-16oz | C77: 23 | E77: Tuffy's Adult Cat Food - 40# | F77: 4905 | G77: 22
A78: 32 Ounce | B78: 10640-32oz | C78: 42 | E78: Fertrell:
A79: S&G Bulk - 36 Ounce | C79: 135 | E79: Pyganic 1.4 conc - 1 quart | F79: 4400 | G79: 65
A80: S&G Pills - 20 Capsules | B80: 10300-20C | C80: 29.5 | E80: Pyganic 5.0 conc - 1 quart | F80: 4405 | G80: 175
A81: Savvy Wound - 16 Ounce | B81: 11000-16oz | C81: 25 | E81: Nature's Avenger - 24 Ounce Spray | F81: 4415 | G81: 15
A82: Savvy Udder - 16 Ounce | B82: 11010-16oz | C82: 25 | E82: Pure Spray - 2.5 Gallon | F82: 4410 | G82: 75
A83: 32 Ounce | B83: 11010-32oz | C83: 45 | E83: Orange Guard 24 Ounce Spray | F83: 4425 | G83: 17.5
